bitfinex-derivatives/quotes_BTCF0:USTF0_20251111
["timestamp","ask_amount","ask_price","bid_price","bid_amount"]
[1762856061296,0.56097637,105200.0,105190.0,0.25325153]
[1762856061601,0.56097637,105200.0,105190.0,0.26688221]
[1762856061994,0.56097637,105200.0,105190.0,0.37290985]
[1762856062606,0.56097637,105200.0,105190.0,0.25325153]
[1762856063007,0.56097637,105200.0,105190.0,0.005]
[1762856063612,0.66700401,105200.0,105190.0,0.005]
[1762856064617,0.1532597,105190.0,105180.0,0.00014245]
[1762856064915,0.62148537,105190.0,105180.0,0.00014245]
[1762856065118,0.1532687,105180.0,105170.0,0.10602764]
[1762856065307,0.63149437,105180.0,105170.0,0.10602764]
[1762856065703,0.63149437,105180.0,105170.0,0.20113544]
[1762856066416,0.52546673,105180.0,105170.0,0.10602764]
[1762856066814,0.52546673,105180.0,105170.0,0.20113544]
[1762856067009,0.52246673,105180.0,105170.0,0.20121768]
[1762856067317,0.51946673,105180.0,105170.0,0.20121768]
[1762856067718,0.51946673,105180.0,105170.0,0.20321768]
[1762856069621,0.51946673,105180.0,105170.0,0.20521768]
[1762856070220,0.51946673,105180.0,105170.0,0.004]
[1762856070520,0.51946673,105180.0,105170.0,0.20521768]
[1762856070706,0.51946673,105180.0,105170.0,0.11010988]
[1762856071224,0.1532778,105170.0,105160.0,0.00014245]
[1762856071420,0.1532868,105160.0,105150.0,8.026e-05]
[1762856071627,0.62159471,105160.0,105150.0,8.026e-05]
[1762856071923,0.62159471,105160.0,105130.0,0.29021052]
[1762856071924,0.1533049,105140.0,105130.0,0.29021052]
[1762856072116,0.63161281,105140.0,105130.0,0.29021052]
[1762856072319,0.153314,105130.0,105120.0,0.13166151]
[1762856072521,0.153323,105120.0,105110.0,0.00165448]
[1762856072819,0.60171117,105120.0,105110.0,0.00165448]
[1762856073017,0.52360129,105120.0,105110.0,0.09681658]
[1762856073219,0.52360129,105120.0,105110.0,0.01020714]
[1762856073526,0.52160129,105120.0,105110.0,0.04384]
[1762856073914,0.52160129,105120.0,105110.0,0.1390021]
[1762856074114,0.52360129,105120.0,105110.0,0.1390021]
[1762856074316,0.42944829,105120.0,105110.0,0.24511198]
[1762856075422,0.42844829,105120.0,105110.0,0.24511198]
[1762856075722,0.43144829,105120.0,105110.0,0.38785609]
[1762856076619,0.43144829,105120.0,105110.0,0.30303431]
[1762856076920,0.52660129,105120.0,105110.0,0.30303431]
[1762856077311,0.52660129,105120.0,105110.0,0.19692443]
[1762856077515,0.52660129,105120.0,105110.0,0.17577443]
[1762856077811,0.52660129,105120.0,105110.0,0.28188431]
[1762856078022,0.52660129,105120.0,105110.0,0.30303431]
[1762856078224,0.52660129,105120.0,105110.0,0.19692443]
[1762856078517,0.52660129,105120.0,105110.0,0.17577443]
[1762856078723,0.52660129,105120.0,105110.0,0.19692443]
[1762856079727,0.43144829,105120.0,105110.0,0.39819641]
[1762856081316,0.12144829,105120.0,105110.0,0.39819641]
[1762856081517,0.05863829,105120.0,105110.0,0.50599605]
[1762856081719,0.00727829,105120.0,105110.0,0.50599605]
[1762856082423,0.00508026,105120.0,105110.0,0.50599605]
[1762856083519,0.06544829,105120.0,105110.0,0.50599605]
[1762856083720,0.06544829,105120.0,105110.0,0.49498605]
[1762856084426,0.05263829,105120.0,105110.0,0.50599605]
[1762856086326,0.00227829,105120.0,105110.0,0.50599605]
[1762856086524,0.00227829,105120.0,105110.0,0.50699605]
[1762856090324,8.026e-05,105120.0,105110.0,0.61310593]
[1762856090527,8.026e-05,105120.0,105110.0,0.50699605]
[1762856100927,0.04701829,105120.0,105110.0,0.50699605]
[1762856101129,0.00227829,105120.0,105110.0,0.50699605]
[1762856101324,0.04469245,105140.0,105130.0,0.147684]
[1762856101524,0.04689048,105140.0,105130.0,0.61503388]
[1762856101725,0.02417048,105140.0,105130.0,0.75829459]
[1762856101927,0.02417048,105140.0,105130.0,0.85342849]
[1762856102125,0.00234048,105140.0,105130.0,0.85342849]
[1762856102529,0.00334048,105140.0,105130.0,0.85342849]
[1762856102728,0.02717048,105140.0,105130.0,0.85342849]
[1762856102926,0.06362048,105140.0,105130.0,0.73984861]
[1762856103129,0.31362048,105140.0,105130.0,0.28347471]
[1762856103326,0.31362048,105140.0,105130.0,0.64475471]
[1762856103521,0.40875538,105140.0,105130.0,0.64475471]
[1762856104239,0.31362048,105140.0,105130.0,0.64475471]
[1762856104433,0.31362048,105140.0,105130.0,0.75086459]
[1762856105938,0.40875538,105140.0,105130.0,0.75086459]
[1762856106130,0.40875538,105140.0,105130.0,0.64475471]
[1762856106332,0.51486526,105140.0,105130.0,0.59968471]
[1762856107243,0.51486526,105140.0,105130.0,0.456424]
[1762856107537,0.41973036,105140.0,105130.0,0.456424]
[1762856107741,0.31362048,105140.0,105130.0,0.501494]
[1762856108142,0.40875538,105140.0,105130.0,0.501494]
[1762856108340,0.31362048,105140.0,105130.0,0.501494]
[1762856108747,0.40875538,105140.0,105130.0,0.501494]
[1762856109433,0.31362048,105140.0,105130.0,0.501494]
[1762856109634,0.31362048,105140.0,105130.0,0.60760388]
[1762856110133,0.40875538,105140.0,105130.0,0.60760388]
[1762856110333,0.40875538,105140.0,105130.0,0.501494]
[1762856110536,0.40875538,105140.0,105130.0,0.40635]
[1762856110742,0.40875538,105140.0,105130.0,0.501494]
[1762856111837,0.05736,105160.0,105150.0,0.1401959]
[1762856112048,0.38955803,105160.0,105150.0,0.60758578]
[1762856112837,0.38955803,105160.0,105150.0,0.5014759]
[1762856113344,0.37874803,105160.0,105150.0,0.5124859]
[1762856113641,0.18874803,105160.0,105150.0,0.84923913]
[1762856113842,0.20347803,105160.0,105150.0,0.84923913]
[1762856114140,0.40347803,105160.0,105150.0,0.64366057]
[1762856114645,0.13247803,105160.0,105150.0,0.64366057]
[1762856114936,0.41247803,105160.0,105150.0,0.64466057]
[1762856115142,0.41047803,105160.0,105150.0,0.64466057]
[1762856115345,0.15047803,105160.0,105150.0,0.64466057]
[1762856115544,0.06047803,105160.0,105150.0,0.85023913]
[1762856115843,0.04469245,105170.0,105160.0,0.1476568]
[1762856116041,0.41062048,105170.0,105160.0,0.1401868]
[1762856117133,0.41047803,105170.0,105160.0,0.1401868]
[1762856117339,0.49285583,105170.0,105160.0,0.05777]
[1762856117839,0.49777583,105170.0,105160.0,0.04507]
[1762856118038,0.49777583,105170.0,105160.0,0.40639]
[1762856118241,0.49977583,105170.0,105160.0,0.40639]
[1762856118445,0.1533968,105160.0,105150.0,0.5016359]
[1762856118743,0.46559483,105160.0,105150.0,0.64452456]
[1762856119940,0.46659483,105160.0,105150.0,0.65788456]
[1762856120242,0.35774803,105160.0,105150.0,0.65788456]
[1762856121047,0.45286483,105160.0,105150.0,0.65788456]
[1762856121434,0.35774803,105160.0,105150.0,0.65788456]
[1762856121640,0.45286483,105160.0,105150.0,0.65788456]
[1762856121839,0.35774803,105160.0,105150.0,0.65788456]
[1762856122038,0.45286483,105160.0,105150.0,0.65788456]
[1762856122238,0.35774803,105160.0,105150.0,0.65788456]
[1762856122435,0.10774803,105160.0,105150.0,0.65788456]
[1762856122641,0.39774803,105160.0,105150.0,0.65788456]
[1762856122842,0.04774803,105160.0,105150.0,0.65788456]
[1762856123147,0.50286483,105160.0,105150.0,0.65788456]
[1762856123343,0.44049005,105160.0,105150.0,0.65788456]
[1762856123552,0.34537325,105160.0,105150.0,0.65788456]
[1762856123745,0.02537325,105160.0,105150.0,0.65788456]
[1762856124050,0.32537325,105160.0,105150.0,0.65788456]
[1762856125344,0.30319803,105160.0,105150.0,0.65788456]
[1762856125646,0.31506803,105160.0,105150.0,0.65788456]
[1762856125842,0.35506803,105160.0,105150.0,0.65788456]
[1762856126545,0.46205483,105160.0,105150.0,0.65788456]
[1762856127250,0.46205483,105160.0,105150.0,0.56275866]
[1762856127641,0.46205483,105160.0,105150.0,0.65788456]
[1762856127842,0.12205483,105160.0,105150.0,0.65788456]
[1762856128044,0.32693803,105160.0,105150.0,0.65788456]
[1762856128242,0.42205483,105160.0,105150.0,0.65788456]
[1762856128644,0.42205483,105160.0,105150.0,0.77758068]
[1762856128840,0.02693803,105160.0,105150.0,0.77758068]
[1762856129348,0.39693803,105160.0,105150.0,0.77758068]
[1762856129551,0.02693803,105160.0,105150.0,0.77758068]
[1762856130046,0.42205483,105160.0,105150.0,0.77758068]
[1762856130247,0.12205483,105160.0,105150.0,0.77758068]
[1762856130448,0.45205483,105160.0,105150.0,0.77758068]
[1762856131054,0.12205483,105160.0,105150.0,0.77758068]
[1762856131252,0.44205483,105160.0,105150.0,0.77758068]
[1762856131754,0.01506803,105160.0,105150.0,0.77758068]
[1762856132049,0.00319803,105160.0,105150.0,0.910262]
[1762856132260,0.11898415,105180.0,105170.0,0.1541078]
[1762856132443,0.47971415,105180.0,105170.0,0.15630583]
[1762856133357,0.48171415,105180.0,105170.0,0.15630583]
[1762856133953,0.48371415,105180.0,105170.0,0.15630583]
[1762856134955,0.58982878,105180.0,105170.0,0.26242336]
[1762856135563,0.58982878,105180.0,105170.0,0.18089415]
[1762856135861,0.58982878,105180.0,105170.0,0.15630583]
[1762856136453,0.69594631,105180.0,105170.0,0.06119803]
[1762856136652,0.69594631,105180.0,105170.0,0.15630583]
[1762856137157,0.69594631,105180.0,105170.0,0.06119803]
[1762856138364,0.69594631,105180.0,105170.0,0.15630583]
[1762856138860,0.69594631,105180.0,105170.0,0.06119803]
[1762856139561,0.69594631,105180.0,105170.0,0.15630583]
[1762856139863,0.58982878,105180.0,105170.0,0.15630583]
[1762856142265,0.48371125,105180.0,105170.0,0.26242336]
[1762856142465,0.58982878,105180.0,105170.0,0.26242336]
[1762856144467,0.58982878,105180.0,105170.0,0.38211948]
[1762856145164,0.38861245,105180.0,105170.0,0.38211948]
[1762856145369,0.38861245,105180.0,105170.0,0.88681612]
[1762856145572,0.48371125,105180.0,105170.0,0.76712]
[1762856145869,0.48371125,105180.0,105170.0,0.88681553]
[1762856146166,0.58982878,105180.0,105170.0,0.88681553]
[1762856146362,0.58982878,105180.0,105170.0,0.79170773]
[1762856146565,0.58982878,105180.0,105170.0,0.88681553]
[1762856146867,0.58782878,105180.0,105170.0,0.88681553]
[1762856147366,0.58582878,105180.0,105170.0,0.88681553]
[1762856147568,0.58582878,105180.0,105170.0,0.76712]
[1762856149868,0.47971125,105180.0,105170.0,0.76712]
[1762856150067,0.58582878,105180.0,105170.0,0.76712]
[1762856151870,0.49072998,105180.0,105170.0,0.76712]
[1762856152167,0.38461245,105180.0,105170.0,0.76712]
[1762856153262,0.38461245,105180.0,105170.0,0.93654688]
[1762856153768,0.36087245,105180.0,105170.0,0.93654688]
[1762856154670,0.37274245,105180.0,105170.0,0.93654688]
[1762856155670,0.37274245,105180.0,105170.0,0.76712]
[1762856156372,0.37274245,105180.0,105170.0,0.93654688]
[1762856156573,0.38461245,105180.0,105170.0,0.93654688]
[1762856158074,0.36087245,105180.0,105170.0,0.93654688]
[1762856159173,0.13087245,105180.0,105170.0,0.93654688]
[1762856159771,0.36461245,105180.0,105170.0,0.93654688]
[1762856160278,0.45971125,105180.0,105170.0,0.93654688]
[1762856161164,0.02461245,105180.0,105170.0,0.93654688]
[1762856161471,0.34461245,105180.0,105170.0,0.93654688]
[1762856162077,0.43971125,105180.0,105170.0,0.93654688]
[1762856162677,0.35461245,105180.0,105170.0,0.93654688]
[1762856162977,0.44971125,105180.0,105170.0,0.93654688]
[1762856163373,0.66194631,105180.0,105170.0,0.45957655]
[1762856163578,0.66194631,105180.0,105170.0,0.06119803]
[1762856163776,0.66194631,105180.0,105170.0,0.18077903]
[1762856164377,0.55582878,105180.0,105170.0,0.27588683]
[1762856165480,0.55682878,105180.0,105170.0,0.27588683]
[1762856165774,0.55682878,105180.0,105170.0,0.15630583]
[1762856166078,0.55882878,105180.0,105170.0,0.15630583]
[1762856166280,0.55782878,105180.0,105170.0,0.15630583]
[1762856166579,0.55982878,105180.0,105170.0,0.15630583]
[1762856167170,0.55982878,105180.0,105170.0,0.26242336]
[1762856168071,0.55982878,105180.0,105170.0,0.16731556]
[1762856168370,0.66594631,105180.0,105170.0,0.04783803]
[1762856168578,1.02706631,105180.0,105170.0,0.13327459]
[1762856169479,1.02706631,105180.0,105170.0,0.24136239]
[1762856169681,0.81483125,105180.0,105170.0,0.34747992]
[1762856169987,0.92094878,105180.0,105170.0,0.34747992]
[1762856170778,0.81483125,105180.0,105170.0,0.34747992]
[1762856170978,0.82584998,105180.0,105170.0,0.34747992]
[1762856171182,0.92094878,105180.0,105170.0,0.34747992]
[1762856171379,0.55982878,105180.0,105170.0,0.34747992]
[1762856171782,0.55982878,105180.0,105170.0,0.26204336]
[1762856172080,0.55982878,105180.0,105170.0,0.34748773]
[1762856172383,0.55782878,105180.0,105170.0,0.34748773]
[1762856172582,0.55582878,105180.0,105170.0,0.34748773]
[1762856173283,0.55582878,105180.0,105170.0,0.26204336]
[1762856173883,0.55582878,105180.0,105170.0,0.38162436]
[1762856174181,0.46072998,105180.0,105170.0,0.38162436]
[1762856174385,0.35461245,105180.0,105170.0,0.38162436]
[1762856174593,0.12087245,105180.0,105170.0,0.38162436]
[1762856174795,0.12087245,105180.0,105170.0,0.26204336]
[1762856175089,0.13274245,105180.0,105170.0,0.26204336]
[1762856175384,0.13274245,105180.0,105170.0,0.43147024]
[1762856175684,0.42971125,105180.0,105170.0,0.57439136]
[1762856176087,0.33461245,105180.0,105170.0,0.57439136]
[1762856176686,0.42971125,105180.0,105170.0,0.57439136]
[1762856176889,0.33461245,105180.0,105170.0,0.40496448]
[1762856177082,0.42971125,105180.0,105170.0,0.40496448]
[1762856177886,0.42971125,105180.0,105170.0,0.30985668]
[1762856178185,0.53582878,105180.0,105170.0,0.4294825]
[1762856178383,0.53582878,105180.0,105170.0,0.32336497]
[1762856178579,0.53582878,105180.0,105170.0,0.6503131]
[1762856178978,0.53582878,105180.0,105170.0,0.7454209]
[1762856179483,0.53582878,105180.0,105170.0,0.85153843]
[1762856180289,0.53782878,105180.0,105170.0,0.85153843]
[1762856180489,0.53882878,105180.0,105170.0,0.85153843]
[1762856181090,0.53782878,105180.0,105170.0,0.76608448]
[1762856181386,0.53982878,105180.0,105170.0,0.65996695]
[1762856181786,0.32674245,105180.0,105170.0,0.76608448]
[1762856182095,0.32574245,105180.0,105170.0,0.85153843]
[1762856182282,0.09387245,105180.0,105170.0,0.85153843]
[1762856182484,0.37387245,105180.0,105170.0,0.76608448]
[1762856182785,0.37287245,105180.0,105170.0,0.76608448]
[1762856183190,0.37287245,105180.0,105170.0,0.93551136]
[1762856183390,0.08287245,105180.0,105170.0,0.93551136]
[1762856184683,0.08187245,105180.0,105170.0,0.93551136]
[1762856185081,0.08114245,105180.0,105170.0,1.13670851]
[1762856185285,0.1188256,105200.0,105190.0,0.05722]
[1762856185584,0.3976856,105200.0,105190.0,0.38022743]
[1762856185789,0.3976856,105200.0,105190.0,0.74134743]
[1762856186098,0.29073,105200.0,105190.0,0.74134743]
[1762856186278,0.29,105200.0,105190.0,0.74134743]
[1762856186483,0.29273,105200.0,105190.0,0.74134743]
[1762856186678,0.29273,105200.0,105190.0,0.76522748]
[1762856186984,0.3878107,105200.0,105190.0,0.76516345]
[1762856187286,0.29373,105200.0,105190.0,0.76516345]
[1762856188190,0.293,105200.0,105190.0,0.76516345]
[1762856188694,0.1188083,105220.0,105210.0,0.05722]
[1762856188888,0.4795383,105220.0,105210.0,0.51556963]
[1762856189197,0.4795383,105220.0,105210.0,0.5401002]
[1762856189707,0.5855918,105220.0,105210.0,0.20490517]
[1762856190001,0.1188116,105210.0,105200.0,0.05736245]
[1762856190184,0.5255951,105210.0,105200.0,0.26447107]
[1762856190592,0.5255951,105210.0,105200.0,0.2399496]
[1762856191494,0.5255951,105210.0,105200.0,0.15464118]
[1762856191695,0.5255951,105210.0,105200.0,0.16621436]
[1762856191896,0.5275951,105210.0,105200.0,0.16621436]
[1762856192199,0.4215416,105210.0,105200.0,0.16621436]
[1762856192392,0.4235416,105210.0,105200.0,0.16621436]
[1762856193199,0.4116716,105210.0,105200.0,0.16621436]
[1762856193498,0.4235416,105210.0,105200.0,0.16621436]
[1762856193993,0.4235416,105210.0,105200.0,0.27226786]
[1762856194200,0.32847,105210.0,105200.0,0.27226786]
[1762856194496,0.32847,105210.0,105200.0,0.39187003]
[1762856194995,0.4235416,105210.0,105200.0,0.39187003]
[1762856195193,0.4116716,105210.0,105200.0,0.39187003]
[1762856195397,0.3166,105210.0,105200.0,0.39187003]
[1762856195600,0.30473,105210.0,105200.0,0.39187003]
[1762856195896,0.06473,105210.0,105200.0,0.53516354]
[1762856196100,0.064,105210.0,105200.0,0.53516354]
[1762856196794,0.064,105210.0,105200.0,0.41556137]
[1762856197300,0.064,105210.0,105200.0,0.53484747]
[1762856198001,0.064,105210.0,105200.0,0.62989998]
[1762856198988,0.064,105210.0,105200.0,0.71509375]
[1762856199193,0.064,105210.0,105200.0,0.59580765]
[1762856202101,0.3846643,105240.0,105200.0,0.59580765]
[1762856202289,0.719405,105240.0,105230.0,0.05722]
[1762856202495,0.720135,105240.0,105230.0,0.05941803]
[1762856203108,0.722135,105240.0,105230.0,0.05941803]
[1762856203992,0.722135,105240.0,105230.0,0.15447163]
[1762856204298,0.726135,105240.0,105230.0,0.15447163]
[1762856204699,0.729135,105240.0,105230.0,0.15447163]
[1762856206701,0.729135,105240.0,105230.0,0.00219803]
[1762856206897,0.729135,105240.0,105230.0,0.11836163]
[1762856207098,0.729135,105240.0,105230.0,0.15447163]
[1762856208903,0.729135,105240.0,105230.0,0.05941803]
[1762856209103,0.729135,105240.0,105230.0,0.15447163]
[1762856211207,0.6230815,105240.0,105230.0,0.15447163]
[1762856211504,0.6230815,105240.0,105230.0,0.26052513]
[1762856212499,0.1187936,105230.0,105220.0,0.00014245]
[1762856212705,0.5255771,105230.0,105220.0,0.00014245]
[1762856213808,0.5295771,105230.0,105220.0,0.00014245]
[1762856214002,0.5325771,105230.0,105220.0,0.00014245]
[1762856217005,0.5325771,105230.0,105220.0,0.00234048]
[1762856217598,0.5325771,105230.0,105220.0,0.06001048]
[1762856217802,0.5325771,105230.0,105220.0,0.15507308]
[1762856217998,0.5325771,105230.0,105220.0,0.26112658]
[1762856217999,0.4265236,105230.0,105220.0,0.26112658]
[1762856218207,0.4265236,105230.0,105220.0,0.15507308]
[1762856218499,0.33147,105230.0,105220.0,0.24026685]
[1762856218700,0.33147,105230.0,105220.0,0.35955295]
[1762856218902,0.33147,105230.0,105220.0,0.27435918]
[1762856219102,0.33147,105230.0,105220.0,0.38041268]
[1762856220810,0.4265236,105230.0,105220.0,0.38041268]
[1762856221110,0.33147,105230.0,105220.0,0.38041268]
[1762856221308,0.3196,105230.0,105220.0,0.38041268]
[1762856221514,0.307,105230.0,105220.0,0.61831495]
[1762856222006,0.307,105230.0,105220.0,0.61855516]
[1762856222211,0.1187763,105250.0,105240.0,0.1527145]
[1762856222510,0.4495063,105250.0,105240.0,0.15491253]
[1762856223612,0.4525063,105250.0,105240.0,0.15491253]
[1762856224212,0.4545063,105250.0,105240.0,0.15491253]
[1762856225711,0.4545063,105250.0,105240.0,0.05986803]
[1762856226609,0.5605598,105250.0,105240.0,0.00219803]
[1762856226912,0.1187936,105230.0,105220.0,0.05781245]
[1762856227209,0.4895236,105230.0,105220.0,0.32148398]
[1762856228203,0.4895236,105230.0,105220.0,0.41654658]
[1762856229308,0.4895236,105230.0,105220.0,0.26484942]
[1762856229511,0.4895236,105230.0,105220.0,0.14532311]
[1762856230208,0.4895236,105230.0,105220.0,0.06001048]
[1762856230612,0.4895236,105230.0,105220.0,0.15507308]
[1762856230803,0.5955771,105230.0,105220.0,0.06001048]
[1762856231311,0.4895236,105230.0,105220.0,0.06001048]
[1762856231808,0.5955771,105230.0,105220.0,0.00014245]
[1762856232009,0.5955771,105230.0,105220.0,2.45e-06]
[1762856232211,0.1185316,105210.0,105200.0,0.24963641]
[1762856232403,0.4692616,105210.0,105200.0,0.16652181]
[1762856232903,0.1192616,105210.0,105200.0,0.16652181]
[1762856233210,0.4192616,105210.0,105200.0,0.25184743]
[1762856233510,0.4192616,105210.0,105200.0,0.15676683]
[1762856234512,0.4192616,105210.0,105200.0,0.16652191]
[1762856236716,0.4192616,105210.0,105200.0,0.07144121]
[1762856237606,0.4192616,105210.0,105200.0,0.16652191]
[1762856238725,0.7806616,105210.0,105200.0,0.16652191]
[1762856243019,0.7805816,105210.0,105200.0,0.25184753]
[1762856243727,0.7805816,105210.0,105200.0,0.16652191]
[1762856245826,0.4192616,105210.0,105200.0,0.07144121]
[1762856246026,0.4192616,105210.0,105200.0,0.16652191]
[1762856246619,0.4192616,105210.0,105200.0,0.07144121]
[1762856247824,0.4192616,105210.0,105200.0,0.01377121]
[1762856248025,0.61370438,105210.0,105200.0,0.01157318]
[1762856248225,0.1185407,105200.0,105190.0,0.33611245]
[1762856248522,0.7805507,105200.0,105190.0,0.33831048]
[1762856249915,0.7805507,105200.0,105190.0,0.31714048]
[1762856250116,0.7922807,105200.0,105190.0,0.31714048]
[1762856250326,0.7922807,105200.0,105190.0,0.32814247]
[1762856250914,0.7922807,105200.0,105190.0,0.04898247]
[1762856251418,0.7922807,105200.0,105190.0,0.03540247]
[1762856251825,0.7805507,105200.0,105190.0,0.07041247]
[1762856252123,0.7815507,105200.0,105190.0,0.07041247]
[1762856253620,0.91416027,105200.0,105190.0,0.01114444]
[1762856254228,0.91416027,105200.0,105190.0,0.00014245]
[1762856254430,0.1185588,105180.0,105170.0,0.41205]
[1762856254630,0.4692888,105180.0,105170.0,0.07038216]
[1762856254823,0.57540545,105180.0,105170.0,0.17649881]
[1762856255024,0.53540545,105180.0,105170.0,0.17649881]
[1762856255631,0.53540545,105180.0,105170.0,0.17749881]
[1762856256133,0.53540545,105180.0,105170.0,0.27260661]
[1762856256331,0.53540545,105180.0,105170.0,0.17749881]
[1762856257429,0.53540545,105180.0,105170.0,0.17649881]
[1762856257626,0.53640545,105180.0,105170.0,0.17649881]
[1762856258226,0.53640545,105180.0,105170.0,0.27160661]
[1762856258830,0.53640545,105180.0,105170.0,0.17649881]
[1762856259022,0.53640545,105180.0,105170.0,0.27160661]
[1762856260331,0.53640545,105180.0,105170.0,0.17649881]
[1762856260635,1.0156521,105180.0,105170.0,0.03343413]
[1762856260837,1.0156521,105180.0,105170.0,0.01137413]
[1762856261048,0.1185678,105170.0,105160.0,0.69700118]
[1762856261335,0.58541445,105170.0,105160.0,0.69919921]
[1762856261535,0.58541445,105170.0,105160.0,0.71048554]
[1762856263330,0.58541445,105170.0,105160.0,0.63333063]
[1762856263527,0.58541445,105170.0,105160.0,0.43209758]
[1762856263727,0.58541445,105170.0,105160.0,0.53821423]
[1762856265035,0.58541445,105170.0,105160.0,0.43209758]
[1762856265335,0.58541445,105170.0,105160.0,0.07081758]
[1762856265536,0.58541445,105170.0,105160.0,0.17693423]
[1762856265737,0.58541445,105170.0,105160.0,0.07081758]
[1762856266438,0.58541445,105170.0,105160.0,0.17693423]
[1762856266735,0.58641445,105170.0,105160.0,0.17693423]
[1762856272642,0.58641445,105170.0,105160.0,0.07081758]
[1762856272844,0.58641445,105170.0,105160.0,0.17693423]
[1762856273044,0.4802978,105170.0,105160.0,0.17693423]
[1762856273343,0.58641445,105170.0,105160.0,0.17693423]
[1762856275445,0.58541445,105170.0,105160.0,0.06861955]
[1762856275646,0.58541445,105170.0,105160.0,0.03360955]
[1762856276348,0.58641445,105170.0,105160.0,0.03360955]
[1762856276747,0.58641445,105170.0,105160.0,0.06938955]
[1762856277049,0.58641445,105170.0,105160.0,0.03360955]
[1762856277845,0.58641445,105170.0,105160.0,0.01154955]
[1762856278047,0.6925311,105170.0,105160.0,0.01154955]
[1762856279747,0.1185768,105160.0,105150.0,0.03716]
[1762856279951,0.1185859,105150.0,105140.0,0.4213]
[1762856280250,0.57543255,105150.0,105140.0,0.43477281]
[1762856280454,0.57543255,105150.0,105140.0,0.07357281]
[1762856280646,0.57553842,105150.0,105140.0,0.07357281]
[1762856280854,0.69338507,105150.0,105140.0,0.01127478]
[1762856281046,0.69338507,105150.0,105130.0,0.01398245]
[1762856281047,0.1185949,105140.0,105130.0,0.03730245]
[1762856281346,1.0428382,105140.0,105130.0,0.00014245]
[1762856282350,1.0428382,105140.0,105130.0,0.04640245]
[1762856282547,1.0428382,105140.0,105130.0,0.04840245]
[1762856282747,1.0428382,105140.0,105130.0,0.05040245]
[1762856282951,1.0428382,105140.0,105130.0,0.00414245]
[1762856283967,0.3308373,105130.0,105120.0,0.01126649]
[1762856284164,0.118613,105120.0,105110.0,0.05921682]
[1762856284463,0.95685965,105120.0,105110.0,0.06141485]
[1762856284661,0.95685965,105120.0,105110.0,0.15657695]
[1762856284863,0.850743,105120.0,105110.0,0.2626936]
[1762856285860,0.95785965,105120.0,105110.0,0.2626936]
[1762856286865,0.851743,105120.0,105110.0,0.2626936]
[1762856288263,0.851743,105120.0,105110.0,0.06141485]
[1762856288567,1.0639763,105120.0,105110.0,0.02343682]
[1762856288862,1.0639763,105120.0,105110.0,0.04637682]
[1762856289066,1.06406439,105120.0,105110.0,0.05732146]
[1762856290069,1.06406439,105120.0,105110.0,0.07016146]
[1762856292673,1.06406439,105120.0,105110.0,0.07235949]
[1762856293671,0.95794774,105120.0,105110.0,0.07235949]
[1762856294371,1.06406439,105120.0,105110.0,0.03438146]
[1762856294571,1.06406439,105120.0,105110.0,0.05732146]
[1762856294770,1.06406439,105120.0,105110.0,0.07016146]
[1762856295274,0.95794774,105120.0,105110.0,0.07235949]
[1762856295474,0.95794774,105120.0,105110.0,0.17847614]
[1762856295673,0.95790774,105120.0,105110.0,0.17847614]
[1762856295868,0.95790774,105120.0,105110.0,0.07235949]
[1762856297175,0.95790774,105120.0,105110.0,0.16752159]
[1762856298374,0.95790774,105120.0,105110.0,0.07235949]
[1762856299166,0.85179109,105120.0,105110.0,0.16752159]
[1762856299375,0.95790774,105120.0,105110.0,0.16752159]
[1762856300577,0.49043109,105120.0,105110.0,0.27363824]
[1762856300877,0.80179109,105120.0,105110.0,0.27363824]
[1762856303378,0.44043109,105120.0,105110.0,0.27363824]
[1762856304974,0.34527809,105120.0,105110.0,0.27363824]
[1762856305677,0.54654774,105120.0,105110.0,0.27363824]
[1762856306471,0.54654774,105120.0,105110.0,0.17847614]
[1762856308879,0.44043109,105120.0,105110.0,0.07235949]
[1762856309275,0.34527809,105120.0,105110.0,0.16752159]
[1762856309679,0.34527809,105120.0,105110.0,0.27375439]
[1762856310879,0.34527809,105120.0,105110.0,0.16752159]
[1762856311184,0.08527809,105120.0,105110.0,0.27375439]
[1762856311773,0.06181809,105120.0,105110.0,0.27375439]
[1762856311980,0.06181809,105120.0,105110.0,0.3932807]
[1762856312182,0.08527809,105120.0,105110.0,0.3932807]
[1762856312572,0.06181809,105120.0,105110.0,0.3932807]
[1762856312778,0.06181809,105120.0,105110.0,0.53689507]
[1762856312979,0.06181809,105120.0,105110.0,0.89825507]
[1762856313580,0.06181809,105120.0,105110.0,0.77872876]
[1762856314087,0.00108809,105120.0,105110.0,0.77872876]
[1762856314280,0.00108809,105120.0,105110.0,0.89825507]
[1762856314585,0.02360245,105130.0,105120.0,0.153773]
[1762856314882,0.02360245,105130.0,105120.0,0.26220383]
[1762856314883,0.37433245,105130.0,105120.0,0.26220383]
[1762856315877,0.37633245,105130.0,105120.0,0.26220383]
[1762856316081,0.37833245,105130.0,105120.0,0.26220383]
[1762856318374,0.37833245,105130.0,105120.0,0.15597103]
[1762856318577,0.37833245,105130.0,105120.0,0.26220383]
[1762856319283,0.47347645,105130.0,105120.0,0.15597103]
[1762856319981,0.37833245,105130.0,105120.0,0.15597103]
[1762856320387,0.12833245,105130.0,105120.0,0.40553289]
[1762856320583,0.10414245,105130.0,105120.0,0.5250592]
[1762856322287,0.10214245,105130.0,105120.0,0.5250592]
[1762856322490,0.10214245,105130.0,105120.0,0.5260592]
[1762856322682,0.10014245,105130.0,105120.0,0.40653289]
[1762856322874,0.10014245,105130.0,105120.0,0.40753289]
[1762856323984,0.10014245,105130.0,105120.0,0.84669054]
[1762856324186,0.1304378,105170.0,105160.0,0.05862]
[1762856324384,0.5074006,105170.0,105160.0,0.00219803]
[1762856325286,0.5104006,105170.0,105160.0,0.00219803]
[1762856325991,0.5134006,105170.0,105160.0,0.00219803]
[1762856327291,0.5114006,105170.0,105160.0,0.00219803]
[1762856327493,0.5094006,105170.0,105160.0,0.00219803]
[1762856327988,0.5084006,105170.0,105160.0,0.00219803]
[1762856328184,0.4041678,105170.0,105160.0,0.12003493]
[1762856328392,0.29719,105170.0,105160.0,0.15593493]
[1762856328985,0.29819,105170.0,105160.0,0.15593493]
[1762856329184,0.29819,105170.0,105160.0,0.26216773]
[1762856329388,0.29819,105170.0,105160.0,0.15593493]
[1762856332000,0.29819,105170.0,105160.0,0.26216773]
[1762856332794,0.28573,105170.0,105160.0,0.26216773]
[1762856333396,0.28646,105170.0,105160.0,0.26216773]
[1762856333694,0.30855,105170.0,105160.0,0.26216773]
[1762856335692,0.30855,105170.0,105160.0,0.15593493]
[1762856335895,0.30855,105170.0,105160.0,0.51717493]
[1762856336592,0.30455,105170.0,105160.0,0.51817493]
[1762856336891,0.30455,105170.0,105160.0,0.51917493]
[1762856337284,0.3996578,105170.0,105160.0,0.15793493]
[1762856337590,0.3996578,105170.0,105160.0,0.42405803]
[1762856337786,0.28246,105170.0,105160.0,0.76719491]
[1762856337992,0.27073,105170.0,105160.0,0.76619491]
[1762856338187,0.05073,105170.0,105160.0,0.76519491]
[1762856338592,0.05,105170.0,105160.0,0.86028358]